fUST/lending_fUST_20240217
["ID","MTS","AMOUNT","RATE_DAILY","PERIOD"]
[314240202,1708114727595,2846.12003,0.00019379,2]
[314240210,1708115087132,177.148627,0.00018948,2]
[314240211,1708115111825,608.15108678,0.000189,2]
[314240236,1708115432050,-159.9108223,0.00019402,2]
[314240238,1708115432060,-163.38875591,0.000198,2]
[314240240,1708115432070,-163.38875591,0.0001985,2]
[314240242,1708115432079,-3696.41166588,0.00019899,2]
[314240246,1708115432108,-337.43736085,0.00019899,2]
[314240298,1708115438162,-3952.19577614,0.00019899,2]
[314240301,1708115438173,-200.79770722,0.000199,3]
[314240302,1708115438183,-163.38875591,0.000199,2]
[314240303,1708115438193,-3560.7300342,0.000199,2]
[314240304,1708115438203,-2791.82,0.0001999,3]
[314240305,1708115438214,-83614.62893142,0.0002,5]
[314240306,1708115438247,-2633.38831629,0.0002,5]
[314240384,1708115443078,-1000.0,0.0002,5]
[314240387,1708115443091,-264.46625028,0.0002,5]
[314240437,1708115446132,-1508.08696117,0.0001999,3]
[314240477,1708115446549,-818.43303883,0.0001999,3]
[314240479,1708115446558,-17704.90033617,0.0002,5]
[314240498,1708115510384,168.646883,0.00019178,2]
[314240499,1708115562975,177.148627,0.00019126,2]
[314240500,1708115713208,405.43405785,0.000189,2]
[314240518,1708116314568,270.2893719,0.000189,2]
[314240547,1708116632258,-4587.57163913,0.00019899,2]
[314240548,1708116632365,-3398.47316374,0.00019899,2]
[314240549,1708116632375,-365.22610472,0.000199,2]
[314240550,1708116632384,-4689.96,0.0001999,3]
[314240551,1708116632393,-4466.95,0.0001999,3]
[314240552,1708116632403,-3722.46,0.0001999,3]
[314240553,1708116632412,-3102.05,0.0001999,3]
[314240554,1708116632421,-46514.29798711,0.0002,5]
[314240566,1708116638349,-2585.04,0.0001999,3]
[314240567,1708116638359,-158784.6416761,0.0002,5]
[314244047,1708116758250,24900.0,0.00018997,2]
[314244048,1708116773135,5124.96,0.00033,120]
[314244053,1708116850475,6125.28036616,0.000125,2]
[314244054,1708116859870,158.68283574,0.000176,2]
[314244055,1708116861177,400.0,0.00012,7]
[314244057,1708116864927,270.0429015,0.0001,2]
[314244059,1708116916031,597.83189559,0.000189,2]
[314244060,1708117211000,2000.0,0.00033,120]
[314244061,1708117231922,7053.9613613,0.00018997,2]
[314244062,1708117517656,914.67092938,0.000189,2]
[314244063,1708117639929,168.646883,0.00019178,2]
[314244103,1708117766611,3000.0,0.00033,120]
[314244272,1708117838524,-7986.04480287,0.000197,2]
[314244273,1708117838537,-200.0,0.00019701,2]
[314244274,1708117838547,-200.0,0.00019701,2]
[314244275,1708117838556,-200.0,0.00019701,2]
[314244276,1708117838567,-200.0,0.00019701,2]
[314244277,1708117838578,-400.0,0.00019701,2]
[314244278,1708117838587,-7844.57,0.0001999,3]
[314244279,1708117838597,-6537.14,0.0001999,3]
[314244280,1708117838608,-5447.62,0.0001999,3]
[314244281,1708117838618,-4539.68,0.0001999,3]
[314244282,1708117838627,-917.55574992,0.00019999,2]
[314244283,1708117838637,-1134459.28199868,0.0002,5]
[314244284,1708117838650,-80797.63564828,0.0002,5]
[314244285,1708117838660,-38698.66,0.0002,2]
[314244286,1708117838669,-300.0,0.00020422,2]
[314244287,1708117838678,-200.0,0.00020685,2]
[314244289,1708117838688,-500.0,0.00020822,2]
[314244291,1708117838697,-500.0,0.00020822,2]
[314244293,1708117838706,-380.53489462,0.00020822,2]
[314244294,1708117838715,-500.0,0.00020822,2]
[314244296,1708117838724,-410.6592984,0.00020822,2]
[314244298,1708117838734,-500.0,0.00020822,2]
[314244300,1708117838743,-500.0,0.00020822,2]
[314244302,1708117838752,-500.0,0.00020822,2]
[314244304,1708117838762,-500.0,0.00020822,2]
[314244307,1708117838771,-365.3101153,0.00020822,2]
[314244309,1708117838781,-500.0,0.00020822,2]
[314244310,1708117838790,-362.23915871,0.00020822,2]
[314244312,1708117838799,-500.0,0.00020822,2]
[314244314,1708117838809,-500.0,0.00020822,2]
[314244316,1708117838818,-500.0,0.00020822,2]
[314244318,1708117838827,-500.0,0.00020822,2]
[314244320,1708117838838,-500.0,0.00020822,2]
[314244322,1708117838849,-500.0,0.00020822,2]
[314244324,1708117838859,-500.0,0.00020822,2]
[314244326,1708117838868,-564.73626696,0.00020822,2]
[314244328,1708117838878,-186.3525651,0.00020822,2]
[314244330,1708117838888,-500.0,0.00020822,2]
[314244332,1708117838898,-500.0,0.00020822,2]
[314244334,1708117838907,-500.0,0.00020822,2]
[314244336,1708117838923,-500.0,0.00020822,2]
[314244339,1708117838932,-556.10617104,0.00020822,2]
[314244340,1708117838941,-500.0,0.00020822,2]
[314244343,1708117838951,-500.0,0.00020822,2]
[314244344,1708117838960,-500.0,0.00020822,2]
[314244346,1708117838969,-500.0,0.00020822,2]
[314244348,1708117838978,-500.0,0.00020822,2]
[314244349,1708117838987,-500.0,0.00020822,2]
[314244350,1708117838996,-500.0,0.00020822,2]
[314244351,1708117839005,-500.0,0.00020822,2]
[314244352,1708117839015,-500.0,0.00020822,2]
[314244353,1708117839024,-500.0,0.00020822,2]
[314244354,1708117839033,-500.0,0.00020822,2]
[314244355,1708117839042,-500.0,0.00020822,2]
[314244356,1708117839051,-500.0,0.00020822,2]
[314244358,1708117839060,-500.0,0.00020822,2]
[314244360,1708117839070,-167.04425248,0.00020822,2]
[314244362,1708117839080,-500.0,0.00020822,2]
[314244363,1708117839089,-500.0,0.00020822,2]
[314244365,1708117839099,-500.0,0.00020822,2]
[314244367,1708117839108,-500.0,0.00020822,2]
[314244368,1708117839117,-500.0,0.00020822,2]
[314244370,1708117839127,-500.0,0.00020822,2]
[314244372,1708117839137,-500.0,0.00020822,2]
[314244374,1708117839146,-500.0,0.00020822,2]
[314244376,1708117839155,-500.0,0.00020822,2]
[314244378,1708117839165,-500.0,0.00020822,2]
[314244380,1708117839173,-500.0,0.00020822,2]
[314244382,1708117839182,-500.0,0.00020822,2]
[314244384,1708117839191,-500.0,0.00020822,2]
[314244386,1708117839200,-500.0,0.00020822,2]
[314244388,1708117839209,-500.0,0.00020822,2]
[314244390,1708117839219,-500.0,0.00020822,2]
[314244392,1708117839228,-500.0,0.00020822,2]
[314244394,1708117839237,-555.0,0.00020822,2]
[314244396,1708117839246,-500.0,0.00020822,2]
[314244398,1708117839255,-295.22470366,0.00020822,2]
[314244400,1708117839265,-500.0,0.00020822,2]
[314244402,1708117839274,-500.0,0.00020822,2]
[314244404,1708117839283,-500.0,0.00020822,2]
[314244406,1708117839292,-566.38138964,0.00020822,2]
[314244408,1708117839301,-566.38138964,0.00020822,2]
[314244410,1708117839310,-500.0,0.00020822,2]
[314244412,1708117839319,-500.0,0.00020822,2]
[314244414,1708117839328,-500.0,0.00020822,2]
[314244416,1708117839337,-311.92930952,0.00020822,2]
[314244418,1708117839346,-500.0,0.00020822,2]
[314244420,1708117839356,-500.0,0.00020822,2]
[314244422,1708117839365,-500.0,0.00020822,2]
[314244423,1708117839374,-487.2881238,0.00020822,2]
[314244426,1708117839385,-500.0,0.00020822,2]
[314244427,1708117839394,-500.0,0.00020822,2]
[314244429,1708117839403,-209.66790735,0.00020822,2]
[314244431,1708117839412,-154.46495223,0.00020822,2]
[314244433,1708117839421,-500.0,0.00020822,2]
[314244435,1708117839430,-500.0,0.00020822,2]
[314244437,1708117839440,-500.0,0.00020822,2]
[314244439,1708117839449,-500.0,0.00020822,2]
[314244441,1708117839458,-500.0,0.00020822,2]
[314244443,1708117839467,-171.53029398,0.00020822,2]
[314244445,1708117839476,-566.38138964,0.00020822,2]
[314244447,1708117839486,-566.38138964,0.00020822,2]
[314244449,1708117839495,-566.38138964,0.00020822,2]
[314244451,1708117839505,-566.38138964,0.00020822,2]
[314244453,1708117839514,-566.38138964,0.00020822,2]
[314244455,1708117839523,-566.38138964,0.00020822,2]
[314244457,1708117839533,-460.85550562,0.00020822,2]
[314244459,1708117839544,-151.0,0.00020822,2]
[314244461,1708117839553,-269.429414,0.00020822,2]
[314244463,1708117839562,-530.275075,0.00020822,2]
[314244465,1708117839571,-530.275075,0.00020822,2]
[314244467,1708117839581,-423.326158,0.00020822,2]
[314244469,1708117839591,-423.326158,0.00020822,2]
[314244471,1708117839601,-276.595567,0.00020822,2]
[314244473,1708117839612,-300.0,0.00020844,2]
[314244475,1708117839622,-500.86810084,0.00021,2]
[314244477,1708117839632,-3918.12632301,0.00021,2]
[314244479,1708117839642,-151.0,0.00021,2]
[314244481,1708117839651,-165.207819,0.00021,2]
[314244483,1708117839660,-1304.17159954,0.0002108,2]
[314244485,1708117839669,-300.0,0.00021267,2]
[314244487,1708117839679,-151.0,0.00021306,2]
[314244489,1708117839688,-151.0,0.00021306,2]
[314244491,1708117839698,-151.0,0.00021306,2]
[314244493,1708117839707,-300.0,0.0002169,2]
[314244495,1708117839717,-500.0,0.00021917,2]
[314244497,1708117839727,-500.0,0.00021917,2]
[314244499,1708117839737,-434.94502588,0.00021917,2]
[314244501,1708117839747,-151.0,0.00021917,2]
[314244503,1708117839757,-530.275075,0.00021917,2]
[314244505,1708117839766,-530.275075,0.00021917,2]
[314244507,1708117839776,-423.326158,0.00021917,2]
[314244509,1708117839785,-423.326158,0.00021917,2]
[314244511,1708117839795,-8077.83528738,0.00021929,2]
[314244513,1708117839805,-4291.87262533,0.00021929,2]
[314244515,1708117839816,-5000.0,0.00021929,2]
[314244525,1708117839900,-4033.20019466,0.00021929,2]
[314244527,1708117839910,-5000.0,0.00021929,2]
[314244529,1708117839919,-151.0,0.00021929,2]
[314244531,1708117839929,-151.0,0.00021929,2]
[314244533,1708117839938,-5996.25408662,0.00021929,2]
[314244535,1708117839948,-151.0,0.00021929,2]
[314244537,1708117839957,-151.0,0.00021929,2]
[314244539,1708117839966,-151.0,0.00021929,2]
[314244541,1708117839975,-151.0,0.00021929,2]
[314244543,1708117839983,-151.0,0.00021929,2]
[314244545,1708117839993,-3157.22025951,0.00021929,2]
[314244547,1708117840002,-151.0,0.00021929,2]
[314244549,1708117840011,-151.0,0.00021929,2]
[314244551,1708117840020,-151.0,0.00021929,2]
[314244554,1708117840030,-530.275075,0.00021929,2]
[314244555,1708117840039,-530.275075,0.00021929,2]
[314244557,1708117840048,-423.326158,0.00021929,2]
[314244559,1708117840057,-423.326158,0.00021929,2]
[314244561,1708117840066,-2538.86540952,0.00021929,2]
[314244564,1708117840075,-151.0,0.00021929,2]
[314244566,1708117840084,-326.91750851,0.00022,2]
[314244567,1708117840093,-300.0,0.00022113,2]
[314244569,1708117840103,-300.0,0.00022535,2]
[314244571,1708117840112,-151.0,0.00022712,2]
[314244573,1708117840121,-530.275075,0.00022712,2]
[314244575,1708117840131,-530.275075,0.00022712,2]
[314244577,1708117840141,-423.326158,0.00022712,2]
[314244579,1708117840150,-423.326158,0.00022712,2]
[314244581,1708117840159,-280.0,0.00022754,7]
[314244583,1708117840168,-269.120619,0.00022958,2]
[314244585,1708117840178,-300.0,0.00022958,2]
[314244586,1708117840187,-333.7967992,0.00023014,2]
[314244588,1708117840196,-306.0,0.00023014,2]
[314244590,1708117840205,-155.00775039,0.00023022,2]
[314244592,1708117840216,-300.0,0.00023381,2]
[314244594,1708117840226,-2500.0,0.000235,2]
[314244597,1708117840236,-300.0,0.00023804,2]
[314244599,1708117840246,-914.67092938,0.000239,2]
[314244600,1708117840255,-579.0,0.000241,2]
[314244603,1708117840265,-300.0,0.00024226,2]
[314244605,1708117840275,-1000.0,0.00024257,3]
[314244607,1708117840288,-963.79857258,0.00024492,2]
[314244609,1708117840297,-300.0,0.00024649,2]
[314244611,1708117840307,-166.666666,0.00024658,2]
[314244613,1708117840316,-380.0,0.00024658,2]
[314244615,1708117840325,-200.0,0.00024658,2]
[314244617,1708117840335,-21076.43419412,0.00025,2]
[314244619,1708117840344,-1007.07133574,0.00025,2]
[314244621,1708117840355,-4742.51638148,0.00025,2]
[314244623,1708117840364,-252.378193,0.00025,2]
[314244625,1708117840373,-2500.0,0.00025,2]
[314244627,1708117840383,-231.778214,0.00025,2]
[314244629,1708117840392,-154.561332,0.00025,2]
[314244631,1708117840401,-151.0,0.00025,2]
[314244633,1708117840410,-151.0,0.00025,2]
[314244635,1708117840419,-530.275075,0.00025,2]
[314244637,1708117840429,-530.275075,0.00025,2]
[314244639,1708117840441,-423.326158,0.00025,2]
[314244641,1708117840451,-423.326158,0.00025,2]
[314244643,1708117840461,-391.0,0.00025029,7]
[314244645,1708117840470,-300.0,0.00025072,2]
[314244647,1708117840480,-166.666666,0.00025235,2]
[314244649,1708117840489,-125582.32067743,0.00025246,2]
[314244651,1708117840499,-151.0,0.00025246,2]
[314244653,1708117840508,-530.275075,0.00025246,2]
[314244655,1708117840517,-530.275075,0.00025246,2]
[314244657,1708117840526,-423.326158,0.00025246,2]
[314244659,1708117840537,-423.326158,0.00025246,2]
[314244661,1708117840546,-7646.43632985,0.00025297,2]
[314244663,1708117840556,-300.0,0.00025494,2]
[314244665,1708117840565,-2500.0,0.000255,2]
[314244667,1708117840575,-637.18992863,0.00025717,2]
[314244669,1708117840584,-166.666666,0.00025812,2]
[314244671,1708117840594,-300.0,0.00025917,2]
[314244673,1708117840605,-524.725743,0.000261,12]
[314244675,1708117840616,-200.2824076,0.00026301,2]
[314244677,1708117840625,-200.2824076,0.00026301,2]
[314244679,1708117840634,-199.9781566,0.00026301,2]
[314244681,1708117840643,-300.0,0.0002634,2]
[314244683,1708117840653,-166.666666,0.00026388,2]
[314244685,1708117840663,-158.78122504,0.0002667,2]
[314244687,1708117840672,-324.75099899,0.0002667,2]
[314244689,1708117840682,-373.1040451,0.0002667,2]
[314244691,1708117840692,-352.12768122,0.0002667,2]
[314244693,1708117840700,-548.9865287,0.0002667,2]
[314244695,1708117840710,-731.6677303,0.0002667,3]
[314244697,1708117840719,-1239.72604447,0.0002667,3]
[314244699,1708117840729,-1704.33631355,0.0002667,3]
[314244701,1708117840738,-469.81003801,0.0002667,3]
[314244703,1708117840747,-1000.0,0.0002667,3]
[314244705,1708117840757,-151.0,0.0002667,2]
[314244706,1708117840766,-530.275075,0.0002667,2]
[314244708,1708117840775,-530.275075,0.0002667,2]
[314244710,1708117840785,-423.326158,0.0002667,2]
[314244712,1708117840794,-423.326158,0.0002667,2]
[314244714,1708117840803,-196.39652727,0.0002668,2]
[314244716,1708117840813,-300.0,0.00026763,2]
[314244719,1708117840822,-166.666666,0.00026965,2]
[314244721,1708117840832,-620.85949643,0.00027002,2]
[314244723,1708117840841,-151.0,0.00027072,4]
[314244725,1708117840852,-300.0,0.00027185,2]
[314244726,1708117840862,-513.15207544,0.00027397,2]
[314244728,1708117840871,-501.86324605,0.00027397,2]
[314244730,1708117840880,-500.0,0.00027397,2]
[314244733,1708117840890,-215.65211747,0.00027397,2]
[314244735,1708117840899,-500.0,0.00027397,2]
[314244737,1708117840908,-500.0,0.00027397,2]
[314244739,1708117840917,-500.0,0.00027397,2]
[314244741,1708117840926,-1000.0,0.00027397,2]
[314244743,1708117840936,-500.0,0.00027397,2]
[314244744,1708117840945,-500.0,0.00027397,2]
[314244747,1708117840954,-500.0,0.00027397,2]
[314244749,1708117840964,-500.0,0.00027397,2]
[314244751,1708117840973,-1000.0,0.00027397,2]
[314244753,1708117840981,-381.96485908,0.00027397,2]
[314244754,1708117840990,-510.0607271,0.00027397,2]
[314244756,1708117840999,-365.59554834,0.00027397,2]
[314244758,1708117841009,-500.0,0.00027397,2]
[314244760,1708117841018,-500.0,0.00027397,2]
[314244762,1708117841027,-500.0,0.00027397,2]
[314244763,1708117841036,-528.25,0.00027397,2]
[314244765,1708117841044,-500.0,0.00027397,2]
[314244767,1708117841054,-500.0,0.00027397,2]
[314244769,1708117841063,-517.16996211,0.00027397,2]
[314244770,1708117841071,-500.0,0.00027397,2]
[314244772,1708117841080,-500.0,0.00027397,2]
[314244773,1708117841090,-500.0,0.00027397,2]
[314244774,1708117841099,-500.0,0.00027397,2]
[314244775,1708117841110,-430.49521315,0.00027397,2]
[314244776,1708117841119,-501.41719031,0.00027397,2]
[314244777,1708117841130,-500.0,0.00027397,2]
[314244778,1708117841141,-500.0,0.00027397,2]
[314244779,1708117841151,-500.0,0.00027397,2]
[314244781,1708117841161,-555.71,0.00027397,2]
[314244783,1708117841170,-503.66942784,0.00027397,2]
[314244785,1708117841180,-500.0,0.00027397,2]
[314244786,1708117841189,-500.0,0.00027397,2]
[314244787,1708117841198,-292.77679659,0.00027397,2]
[314244789,1708117841207,-500.0,0.00027397,2]
[314244791,1708117841216,-524.14886469,0.00027397,15]
[314244792,1708117841225,-500.0,0.00027397,2]
[314244793,1708117841234,-842.74,0.00027397,2]
[314244794,1708117841243,-500.0,0.00027397,2]
[314244795,1708117841253,-810.49,0.00027397,2]
[314244796,1708117841263,-500.0,0.00027397,2]
[314244797,1708117841272,-500.0,0.00027397,2]
[314244798,1708117841282,-743.59,0.00027397,2]
[314244799,1708117841292,-500.0,0.00027397,2]
[314244800,1708117841302,-333.48545823,0.00027397,2]
[314244801,1708117841312,-665.81,0.00027397,2]
[314244802,1708117841321,-500.0,0.00027397,2]
[314244803,1708117841330,-500.0,0.00027397,2]
[314244804,1708117841339,-500.0,0.00027397,2]
[314244805,1708117841348,-500.0,0.00027397,2]
[314244806,1708117841358,-500.0,0.00027397,2]
[314244807,1708117841368,-500.0,0.00027397,2]
[314244808,1708117841377,-500.0,0.00027397,2]
[314244809,1708117841386,-500.0,0.00027397,2]
[314244810,1708117841464,-500.0,0.00027397,2]
[314244811,1708117841474,-500.0,0.00027397,2]
[314244812,1708117841484,-500.0,0.00027397,2]
[314244813,1708117841494,-500.0,0.00027397,2]
[314244814,1708117841503,-500.0,0.00027397,2]
[314244815,1708117841512,-500.0,0.00027397,2]
[314244816,1708117841521,-613.43903521,0.00027397,2]
[314244817,1708117841533,-500.0,0.00027397,2]
[314244818,1708117841544,-500.0,0.00027397,2]
[314244819,1708117841554,-500.0,0.00027397,2]
[314244820,1708117841564,-958.51,0.00027397,2]
[314244821,1708117841574,-1467.29,0.00027397,2]
[314244822,1708117841583,-500.0,0.00027397,2]
[314244823,1708117841592,-500.0,0.00027397,2]
[314244824,1708117841602,-500.0,0.00027397,2]
[314244825,1708117841615,-500.0,0.00027397,2]
[314244826,1708117841625,-500.0,0.00027397,2]
[314244827,1708117841634,-151.0,0.00027397,2]
[314244828,1708117841644,-1000.0,0.00027397,2]
[314244829,1708117841653,-500.0,0.00027397,2]
[314244830,1708117841665,-977.22,0.00027397,2]
[314244831,1708117841675,-500.0,0.00027397,2]
[314244832,1708117841684,-1046.5,0.00027397,2]
[314244833,1708117841693,-500.0,0.00027397,2]
[314244834,1708117841703,-500.0,0.00027397,2]
[314244835,1708117841712,-500.0,0.00027397,2]
[314244836,1708117841722,-500.0,0.00027397,2]
[314244837,1708117841731,-500.0,0.00027397,2]
[314244838,1708117841741,-1164.36,0.00027397,2]
[314244839,1708117841750,-500.0,0.00027397,2]
[314244840,1708117841759,-533.40851466,0.00027397,2]
[314244841,1708117841768,-500.0,0.00027397,2]
[314244842,1708117841778,-1000.0,0.00027397,2]
[314244843,1708117841787,-1177.02,0.00027397,2]
[314244844,1708117841796,-10199.48,0.00027397,2]
[314244845,1708117841807,-646.15064202,0.00027397,2]
[314244846,1708117841816,-500.0,0.00027397,2]
[314244847,1708117841825,-504.35773399,0.00027397,2]
[314244848,1708117841834,-7322.7,0.00027397,2]
[314244849,1708117841843,-500.0,0.00027397,2]
[314244850,1708117841853,-1529.16,0.00027397,2]
[314244851,1708117841865,-8160.25,0.00027397,2]
[314244852,1708117841874,-500.0,0.00027397,2]
[314244853,1708117841883,-500.0,0.00027397,2]
[314244854,1708117841892,-5800.58,0.00027397,2]
[314244855,1708117841904,-912.93,0.00027397,2]
[314244857,1708117841913,-2182.32,0.00027397,2]
[314244859,1708117841922,-500.0,0.00027397,2]
[314244860,1708117841932,-500.0,0.00027397,2]
[314244862,1708117841941,-500.0,0.00027397,2]
[314244864,1708117841950,-875.11,0.00027397,2]
[314244866,1708117841959,-1720.06,0.00027397,2]
[314244867,1708117841967,-988.24,0.00027397,2]
[314244869,1708117841976,-500.0,0.00027397,2]
[314244870,1708117841985,-1374.3,0.00027397,2]
[314244872,1708117841995,-500.0,0.00027397,2]
[314244874,1708117842004,-500.0,0.00027397,2]
[314244876,1708117842014,-500.0,0.00027397,2]
[314244878,1708117842023,-500.0,0.00027397,2]
[314244880,1708117842032,-500.0,0.00027397,2]
[314244881,1708117842041,-230.36,0.00027397,2]
[314244882,1708117842051,-535.48702604,0.00027397,2]
[314244884,1708117842061,-500.0,0.00027397,2]
[314244885,1708117842070,-500.0,0.00027397,2]
[314244887,1708117842080,-500.0,0.00027397,2]
[314244888,1708117842089,-530.275075,0.00027397,2]
[314244889,1708117842099,-530.275075,0.00027397,2]
[314244890,1708117842110,-530.275075,0.00027397,2]
[314244891,1708117842119,-9742.87,0.00027397,2]
[314244892,1708117842128,-530.275075,0.00027397,2]
[314244893,1708117842139,-530.275075,0.00027397,2]
[314244894,1708117842148,-530.275071,0.00027397,2]
[314244895,1708117842158,-500.0,0.00027397,2]
[314244896,1708117842168,-500.0,0.00027397,2]
[314244897,1708117842177,-1268.03,0.00027397,2]
[314244898,1708117842187,-14609.34,0.00027397,2]
[314244899,1708117842196,-500.0,0.00027397,2]
[314244900,1708117842205,-1146.09,0.00027397,2]
[314244901,1708117842214,-166.83577801,0.00027397,2]
[314244902,1708117842224,-423.326158,0.00027397,2]
[314244903,1708117842233,-423.326158,0.00027397,2]
[314244904,1708117842242,-423.326158,0.00027397,2]
[314244905,1708117842251,-500.0,0.00027397,2]
[314244906,1708117842260,-12747.65,0.00027397,2]
[314244907,1708117842269,-423.326158,0.00027397,2]
[314244908,1708117842278,-423.326158,0.00027397,2]
[314244909,1708117842288,-423.32616,0.00027397,2]
[314244910,1708117842297,-507.2584554,0.00027397,2]
[314244911,1708117842307,-500.0,0.00027397,2]
[314244912,1708117842317,-500.0,0.00027397,2]
[314244913,1708117842326,-1831.54,0.00027397,2]
[314244914,1708117842335,-500.0,0.00027397,2]
[314244915,1708117842345,-500.0,0.00027397,2]
[314244917,1708117842358,-500.0,0.00027397,2]
[314244918,1708117842368,-500.0,0.00027397,2]
[314244919,1708117842377,-363.08676384,0.00027397,2]
[314244920,1708117842387,-1712.12,0.00027397,2]
[314244921,1708117842396,-155.0,0.00027397,2]
[314244922,1708117842406,-500.0,0.00027397,2]
[314244923,1708117842416,-500.0,0.00027397,2]
[314244924,1708117842425,-500.0,0.00027397,2]
[314244925,1708117842435,-500.0,0.00027397,2]
[314244926,1708117842444,-2019.67,0.00027397,2]
[314244927,1708117842453,-500.0,0.00027397,2]
[314244928,1708117842464,-721.64,0.00027397,2]
[314244929,1708117842474,-579.26416419,0.00027397,2]
[314244930,1708117842483,-500.0,0.00027397,2]
[314244931,1708117842492,-500.0,0.00027397,2]
[314244932,1708117842502,-1421.87,0.00027397,2]
[314244933,1708117842511,-500.0,0.00027397,2]
[314244934,1708117842520,-500.0,0.00027397,2]
[314244935,1708117842529,-534.31,0.00027397,2]
[314244936,1708117842543,-500.0,0.00027397,2]
[314244937,1708117842553,-1325.35,0.00027397,2]
[314244938,1708117842564,-267.63397741,0.00027397,2]
[314244939,1708117842573,-3466.87,0.00027397,2]
[314244940,1708117842583,-500.0,0.00027397,2]
[314244941,1708117842592,-2487.42,0.00027397,2]
[314244942,1708117842603,-500.0,0.00027397,2]
[314244943,1708117842613,-500.0,0.00027397,2]
[314244944,1708117842624,-1362.12,0.00027397,2]
[314244945,1708117842634,-500.0,0.00027397,2]
[314244946,1708117842644,-507.84190788,0.00027397,2]
[314244947,1708117842653,-563.14162363,0.00027397,2]
[314244948,1708117842663,-400.0,0.00027397,2]
[314244949,1708117842672,-238.22517568,0.00027397,10]
[314244950,1708117842682,-2500.0,0.000275,2]
[314244951,1708117842691,-200.0,0.00027532,15]
[314244952,1708117842700,-348.0,0.00027532,15]
[314244953,1708117842709,-500.0,0.00027534,2]
[314244954,1708117842719,-166.666666,0.00027542,2]
[314244955,1708117842729,-300.0,0.00027608,2]
[314244956,1708117842738,-151.0,0.00027624,2]
[314244957,1708117842748,-632.55827004,0.00027671,2]
[314244958,1708117842757,-500.0,0.00027671,2]
[314244959,1708117842767,-533.40924664,0.00027671,2]
[314244960,1708117842776,-487.98431059,0.00027671,2]
[314244961,1708117842785,-1000.0,0.00027671,2]
[314244962,1708117842795,-500.0,0.00027671,2]
[314244963,1708117842804,-500.0,0.00027671,2]
[314244964,1708117842814,-500.0,0.00027671,2]
[314244965,1708117842823,-500.0,0.00027671,2]
[314244966,1708117842832,-500.0,0.00027671,2]
[314244967,1708117842841,-447.8885107,0.00027671,2]
[314244968,1708117842850,-500.0,0.00027671,2]
[314244970,1708117842915,-528.25,0.00027671,2]
[314244971,1708117842931,-500.0,0.00027671,2]
[314244972,1708117842940,-500.0,0.00027671,2]
[314244973,1708117842950,-500.0,0.00027671,2]
[314244974,1708117842959,-500.0,0.00027671,2]
[314244975,1708117842968,-500.0,0.00027671,2]
[314244976,1708117842978,-500.0,0.00027671,2]
[314244977,1708117842987,-500.0,0.00027671,2]
[314244978,1708117842996,-555.71,0.00027671,2]
[314244979,1708117843006,-500.0,0.00027671,2]
[314244981,1708117843016,-500.0,0.00027671,2]
[314244982,1708117843025,-500.0,0.00027671,2]
[314244983,1708117843037,-500.0,0.00027671,2]
[314244984,1708117843046,-842.74,0.00027671,2]
[314244985,1708117843055,-500.0,0.00027671,2]